[Event "1.FrauenBL 2019-20"]
[Site "Baden-Baden"]
[Date "2020.02.01"]
[Round "5.5"]
[White "Troyke, Doreen"]
[Black "Tammert, Iamze"]
[Result "0-1"]
[ECO "D75"]
[WhiteElo "2021"]
[BlackElo "2292"]
[Annotator "ChessBase"]
[PlyCount "64"]
[EventDate "2019.09.14"]
[EventType "team-tourn"]
[EventCountry "GER"]
[SourceTitle "playchess.com"]
[Source "ChessBase"]
[SourceQuality "1"]
[WhiteTeam "ERF"]
[BlackTeam "BAD"]
[TimeControl "40/5400+30:1800+30"]

1. c4 {[%emt 0:00:30]} Nf6 {[%emt 0:00:30]} 2. g3 {[%emt 0:00:00]} d5 {[%emt 0:00:30]} 3. Bg2 {[%emt 0:01:00]} g6 {[%emt 0:01:30]} 4. cxd5 {[%emt 0:01:30]} Nxd5 {[%emt 0:00:00]} 5. Nc3 {[%emt 0:00:30]} Nxc3 {[%emt 0:00:00]} 6. bxc3 {[%emt 0:00:00]} Bg7 {[%emt 0:00:30]} 7. Nf3 {[%emt 0:02:00]} O-O {[%emt 0:00:30]} 8. O-O {[%emt 0:01:30]} c5 {[%emt 0:02:30]} 9. d4 {[%emt 0:09:30]} cxd4 {[%emt 0:02:30]} 10. cxd4 {[%emt 0:00:30]} Nc6 {[%emt 0:00:30]} 11. e3 {[%emt 0:03:30]} Be6 {[%emt 0:04:30]} 12. Qa4 {[%emt 0:03:30]} Bd5 {[%emt 0:28:30]} 13. Rb1 {[%emt 0:14:30]} Rb8 {[%emt 0:09:30]} 14. Rd1 {[%emt 0:10:30]} Re8 {[%emt 0:06:30]} 15. Rb5 {[%emt 0:04:30]} a6 {[%emt 0:01:30]} 16. Rc5 {[%emt 0:01:30]} e6 {[%emt 0:02:30]} 17. Bd2 {[%emt 0:13:30]} Bf8 {[%emt 0:07:30]} 18. Rcc1 {[%emt 0:00:30]} Qd6 {[%emt 0:02:30]} 19. e4 {[%emt 0:06:30]} Bxe4 {[%emt 0:00:30]} 20. Bf4 {[%emt 0:00:30]} Qa3 {[%emt 0:00:00]} 21. Qxa3 {[%emt 0:04:30]} Bxa3 {[%emt 0:00:00]} 22. Rxc6 {[%emt 0:10:55]} Bxc6 {[%emt 0:00:30]} 23. Bxb8 {[%emt 0:01:24]} Rxb8 {[%emt 0:00:00]} 24. Ne5 {[%emt 0:00:39]} Bxg2 {[%emt 0:00:00]} 25. Kxg2 {[%emt 0:00:03]} Rc8 {[%emt 0:00:30]} 26. Rd3 {[%emt 0:01:16]} Bb2 {[%emt 0:05:30]} 27. Rb3 {[%emt 0:02:31]} Bxd4 {[%emt 0:02:30]} 28. Nf3 {[%emt 0:00:09]} Bf6 {[%emt 0:00:30]} 29. Rxb7 {[%emt 0:00:25]} Rc2 {[%emt 0:00:30]} 30. g4 {[%emt 0:02:19]} h6 {[%emt 0:00:30]} 31. h4 {[%emt 0:01:09]} g5 {[%emt 0:00:30]} 32. hxg5 {[%emt 0:00:12]} hxg5 {[%emt 0:00:30]} 0-1

[Event "1.FrauenBL 2019-20"]
[Site "Baden-Baden"]
[Date "2020.02.01"]
[Round "5.6"]
[White "Heinemann, Josefine"]
[Black "Umpfenbach, Carolin"]
[Result "1-0"]
[ECO "B00"]
[WhiteElo "2317"]
[BlackElo "2073"]
[Annotator "ChessBase"]
[PlyCount "67"]
[EventDate "2019.09.14"]
[EventType "team-tourn"]
[EventCountry "GER"]
[SourceTitle "playchess.com"]
[Source "ChessBase"]
[SourceQuality "1"]
[WhiteTeam "BAD"]
[BlackTeam "ERF"]
[TimeControl "40/5400+30:1800+30"]

1. e4 {[%emt 0:00:30]} e6 {[%emt 0:00:30]} 2. d4 {[%emt 0:00:00]} b6 {[%emt 0:00:00]} 3. Bd3 {[%emt 0:00:00]} Bb7 {[%emt 0:01:00]} 4. Nf3 {[%emt 0:02:30]} c5 {[%emt 0:05:30]} 5. c3 {[%emt 0:02:30]} cxd4 {[%emt 0:02:30]} 6. cxd4 {[%emt 0:01:30]} Bb4+ {[%emt 0:05:30]} 7. Bd2 {[%emt 0:01:30]} Bxd2+ {[%emt 0:01:30]} 8. Nbxd2 {[%emt 0:00:30]} Ne7 {[%emt 0:01:30]} 9. O-O {[%emt 0:00:30]} O-O {[%emt 0:11:30]} 10. Qe2 {[%emt 0:04:30]} f5 {[%emt 0:11:30]} 11. e5 {[%emt 0:06:30]} Nd5 {[%emt 0:00:30]} 12. g3 {[%emt 0:03:30]} Nc6 {[%emt 0:03:30]} 13. a3 {[%emt 0:00:30]} g5 {[%emt 0:02:30]} 14. h3 {[%emt 0:05:30]} Qe7 {[%emt 0:07:30]} 15. Nc4 {[%emt 0:05:30]} Rad8 {[%emt 0:00:30]} 16. Nd6 {[%emt 0:00:30]} Ba8 {[%emt 0:00:30]} 17. Bc4 {[%emt 0:01:30]} Na5 {[%emt 0:01:30]} 18. Ba2 {[%emt 0:05:30]} Qg7 {[%emt 0:04:30]} 19. Rac1 {[%emt 0:03:30]} Ne7 {[%emt 0:07:30]} 20. Rc7 {[%emt 0:06:30]} Kh8 {[%emt 0:03:30]} 21. Rd1 {[%emt 0:03:30]} Qh6 {[%emt 0:02:30]} 22. Kh2 {[%emt 0:06:30]} g4 {[%emt 0:08:24]} 23. Nh4 {[%emt 0:04:30]} Ng6 {[%emt 0:06:51]} 24. Nxg6+ {[%emt 0:00:30]} hxg6 {[%emt 0:00:04]} 25. d5 {[%emt 0:00:30]} Qxh3+ {[%emt 0:01:02]} 26. Kg1 {[%emt 0:00:00]} f4 {[%emt 0:04:59]} 27. gxf4 {[%emt 0:02:00]} Rxf4 {[%emt 0:00:53]} 28. Rd3 {[%emt 0:00:30]} Rf3 {[%emt 0:01:41]} 29. Nf7+ {[%emt 0:02:30]} Kg7 {[%emt 0:00:16]} 30. Nxd8 {[%emt 0:02:30]} Rxd3 {[%emt 0:00:48]} 31. Nxe6+ {[%emt 0:00:00]} Kh6 {[%emt 0:00:53]} 32. Nf4 {[%emt 0:00:00]} Qf3 {[%emt 0:01:38]} 33. Qxd3 {[%emt 0:00:30]} Qxf4 {[%emt 0:00:31]} 34. Qe3 {[%emt 0:00:00]} 1-0

[Event "1.FrauenBL 2019-20"]
[Site "Baden-Baden"]
[Date "2020.02.01"]
[Round "5.7"]
[White "Sieber, Fiona"]
[Black "Muetsch, Annmarie"]
[Result "0-1"]
[ECO "B32"]
[WhiteElo "2245"]
[BlackElo "2227"]
[Annotator "ChessBase"]
[PlyCount "96"]
[EventDate "2019.09.14"]
[EventType "team-tourn"]
[EventCountry "GER"]
[SourceTitle "playchess.com"]
[Source "ChessBase"]
[SourceQuality "1"]
[WhiteTeam "LEH"]
[BlackTeam "KSF"]
[TimeControl "40/5400+30:1800+30"]

1. e4 {[%emt 0:00:00]} c5 {[%emt 0:00:00]} 2. Nf3 {[%emt 0:00:00]} Nc6 {[%emt 0:00:00]} 3. d4 {[%emt 0:00:00]} cxd4 {[%emt 0:00:00]} 4. Nxd4 {[%emt 0:00:00]} e5 {[%emt 0:00:00]} 5. Nb5 {[%emt 0:00:00]} d6 {[%emt 0:00:00]} 6. N1c3 {[%emt 0:00:00]} a6 {[%emt 0:00:00]} 7. Na3 {[%emt 0:00:00]} b5 {[%emt 0:00:00]} 8. Nd5 {[%emt 0:00:00]} Nge7 {[%emt 0:00:00]} 9. c4 {[%emt 0:00:00]} Nxd5 {[%emt 0:00:00]} 10. cxd5 {[%emt 0:00:00]} Nd4 {[%emt 0:00:00]} 11. Bd3 {[%emt 0:00:00]} g6 {[%emt 0:00:00]} 12. O-O {[%emt 0:00:00]} Bg7 {[%emt 0:00:00]} 13. Nc2 {[%emt 0:00:00]} O-O {[%emt 0:00:00]} 14. Be3 {[%emt 0:00:00]} Kh8 {[%emt 0:00:00]} 15. Qd2 {[%emt 0:03:30]} f5 {[%emt 0:00:00]} 16. exf5 {[%emt 0:06:30]} Nxf5 {[%emt 0:00:00]} 17. Bg5 {[%emt 0:04:30]} Qb6 {[%emt 0:00:30]} 18. Rac1 {[%emt 0:16:30]} Bd7 {[%emt 0:04:30]} 19. Bxf5 {[%emt 0:12:30]} gxf5 {[%emt 0:11:30]} 20. Be3 {[%emt 0:01:30]} Qb7 {[%emt 0:04:30]} 21. f4 {[%emt 0:01:30]} a5 {[%emt 0:08:30]} 22. fxe5 {[%emt 0:04:30]} dxe5 {[%emt 0:02:30]} 23. Rfd1 {[%emt 0:12:30]} f4 {[%emt 0:16:30]} 24. Bc5 {[%emt 0:01:30]} Rfc8 {[%emt 0:09:30]} 25. Ne1 {[%emt 0:00:30]} Bg4 {[%emt 0:04:30]} 26. Nf3 {[%emt 0:01:30]} e4 {[%emt 0:09:30]} 27. Qxf4 {[%emt 0:07:30]} Bxf3 {[%emt 0:22:08]} 28. gxf3 {[%emt 0:00:30]} Rxc5 {[%emt 0:00:57]} 29. Rxc5 {[%emt 0:01:30]} Bd4+ {[%emt 0:00:30]} 30. Rxd4 {[%emt 0:01:30]} Qg7+ {[%emt 0:00:06]} 31. Kf1 {[%emt 0:13:09]} Qxd4 {[%emt 0:03:35]} 32. Rc6 {[%emt 0:02:24]} Qd1+ {[%emt 0:02:49]} 33. Kf2 {[%emt 0:00:03]} Qd4+ {[%emt 0:01:16]} 34. Kf1 {[%emt 0:00:16]} Qd1+ {[%emt 0:00:46]} 35. Kf2 {[%emt 0:07:48]} Qd4+ {[%emt 0:00:31]} 36. Kg3 {[%emt 0:00:01]} Qg7+ {[%emt 0:01:35]} 37. Kh4 {[%emt 0:01:03]} exf3 {[%emt 0:01:22]} 38. Rc7 {[%emt 0:03:22]} Rf8 {[%emt 0:00:10]} 39. Qd6 {[%emt 0:01:41]} Qd4+ {[%emt 0:00:55]} 40. Kh3 {[%emt 0:00:02]} Rg8 {[%emt 0:00:00]} 41. Qe6 {[%emt 0:00:00]} Qxb2 {[%emt 0:00:00]} 42. Rc2 {[%emt 0:00:00]} Qg7 {[%emt 0:00:00]} 43. Qe4 {[%emt 0:00:00]} b4 {[%emt 0:00:00]} 44. Qf4 {[%emt 0:06:11]} Rf8 {[%emt 0:00:00]} 45. Qe3 {[%emt 0:02:30]} Qd7+ {[%emt 0:00:50]} 46. Kg3 {[%emt 0:01:30]} Rg8+ {[%emt 0:03:30]} 47. Kxf3 {[%emt 0:01:30]} Qh3+ {[%emt 0:00:30]} 48. Kf2 {[%emt 0:04:34]} Rg2+ {[%emt 0:00:30]} 0-1

[Event "1.FrauenBL 2019-20"]
[Site "Baden-Baden"]
[Date "2020.02.01"]
[Round "5.8"]
[White "Georgescu, Lena"]
[Black "Newrkla, Katharina"]
[Result "1/2-1/2"]
[ECO "B90"]
[WhiteElo "2285"]
[BlackElo "2238"]
[Annotator "NA"]
[PlyCount "106"]
[EventDate "2019.09.14"]
[EventType "team-tourn"]
[EventCountry "GER"]
[SourceTitle "playchess.com"]
[Source "ChessBase"]
[SourceQuality "1"]
[WhiteTeam "KSF"]
[BlackTeam "LEH"]
[TimeControl "40/5400+30:1800+30"]

1. e4 {[%emt 0:00:30]} c5 {[%emt 0:00:30]} 2. Nf3 {[%emt 0:00:00]} d6 {[%emt 0:00:00]} 3. d4 {[%emt 0:00:00]} cxd4 {[%emt 0:00:00]} 4. Nxd4 {[%emt 0:00:00]} Nf6 {[%emt 0:00:00]} 5. Nc3 {[%emt 0:00:00]} a6 {[%emt 0:00:00]} 6. Be3 {[%emt 0:00:00]} e5 {[%emt 0:00:30]} 7. Nb3 {[%emt 0:00:00]} Be7 {[%emt 0:00:30]} 8. h3 {[%emt 0:00:00] B90: Sicilian Najdorf: Unusual White 6th moves, 6 Be3 Ng4 and 6 Be3 e5} Be6 {[%emt 0:01:30]} 9. f4 {[%emt 0:00:00]} exf4 {[%emt 0:00:30]} 10. Bxf4 {[%emt 0:00:30]} Nc6 {[%emt 0:00:30]} 11. Qe2 {[%emt 0:00:30]} Ne5 {[%emt 0:10:30]} 12. O-O-O {[%emt 0:05:30]} Qc7 {[%emt 0:04:30]} 13. Nd4 {[%emt 0:07:30]} Rc8 {[%emt 0:02:30]} 14. Kb1 {[%emt 0:14:30]} Qa5 {[%emt 0:09:30]} 15. Nb3 {[%emt 0:05:30]} Qc7 {[%emt 0:06:30]} 16. g4 {[%emt 0:01:30] [#]} Nc4 $146 {[%emt 0:06:30]} ({Predecessor:} 16... O-O 17. g5 Nfd7 18. Nd5 Bxd5 19. exd5 Rfe8 20. Qg2 Bf8 21. h4 g6 22. h5 Bg7 23. hxg6 hxg6 24. Rh3 Nb6 {1-0 (30) Mastrovasilis,D (2594)-Piesik,P (2409) Katowice 2019}) 17. Nd5 {[%emt 0:16:30]} Bxd5 {[%emt 0:02:30]} 18. exd5 {[%emt 0:00:00]} O-O {[%emt 0:00:30]} 19. Qxc4 {[%emt 0:11:00]} Qxc4 {[%emt 0:02:30]} 20. Bxc4 {[%emt 0:00:00]} Rxc4 {[%emt 0:00:00]} 21. Bh2 {[%emt 0:00:00]} Rfc8 {[%emt 0:15:00]} 22. c3 {[%emt 0:07:30]} Bf8 {[%emt 0:14:30]} 23. Nd2 {[%emt 0:04:30]} R4c7 {[%emt 0:01:30]} 24. c4 {[%emt 0:02:30]} b5 {[%emt 0:00:30]} 25. b3 {[%emt 0:01:30]} (25. g5 $5 {[%cal Rg5f6]} Ne8 26. b3 $14) 25... Rb7 {[%emt 0:03:42]} 26. Rc1 $11 {[%emt 0:03:30]} bxc4 {[%emt 0:10:01]} 27. Nxc4 {[%emt 0:00:30]} Nxd5 {[%emt 0:00:16]} 28. Nxd6 {[%emt 0:01:23]} Rxc1+ {[%emt 0:00:05]} 29. Rxc1 {[%emt 0:01:06]} Bxd6 {[%emt 0:04:29]} 30. Bxd6 {[%emt 0:00:07]} f6 {[%emt 0:00:20]} 31. Rc6 {[%emt 0:02:44]} Rb6 {[%emt 0:04:13]} 32. Rc8+ {[%emt 0:07:26]} Kf7 {[%emt 0:00:06]} 33. Rd8 {[%emt 0:00:16]} Nc3+ {[%emt 0:01:16]} 34. Kb2 {[%emt 0:01:12]} Ne4 {[%emt 0:00:13]} 35. Bf4 {[%emt 0:03:46]} Rc6 {[%emt 0:01:11]} 36. Rd3 {[%emt 0:05:07]} g5 {[%emt 0:00:16]} 37. Be3 {[%emt 0:00:30]} Kg6 {[%emt 0:00:26]} 38. b4 {[%emt 0:00:50]} f5 {[%emt 0:00:29]} 39. gxf5+ {[%emt 0:00:10]} Kxf5 {[%emt 0:00:04]} 40. Rd5+ {[%emt 0:00:54]} Kf6 {[%emt 0:00:00]} 41. Rd8 {[%emt 0:10:29]} Rd6 {[%emt 0:14:19]} 42. Rxd6+ {[%emt 0:14:57]} Nxd6 {[%emt 0:00:05]} 43. Kc3 {[%emt 0:00:08]} h5 {[%emt 0:02:00]} 44. a4 {[%emt 0:00:33]} g4 {[%emt 0:00:45]} 45. hxg4 {[%emt 0:00:25]} hxg4 {[%emt 0:00:05]} 46. Bf4 {[%emt 0:03:03]} Ke6 {[%emt 0:01:19]} 47. Kd4 {[%emt 0:01:48]} Kd7 {[%emt 0:10:48]} 48. Kc5 {[%emt 0:01:32]} Ne4+ {[%emt 0:00:14]} 49. Kb6 {[%emt 0:01:15]} Nc3 {[%emt 0:00:07]} 50. Kxa6 {[%emt 0:01:12]} Nxa4 {[%emt 0:00:06]} 51. Be5 {[%emt 0:00:32]} Ke6 {[%emt 0:03:19]} 52. Bg3 {[%emt 0:00:19]} Nc3 {[%emt 0:00:33]} 53. b5 {[%emt 0:00:18]} Nxb5 {[%emt 0:00:05]} 1/2-1/2

[Event "1.FrauenBL 2019-20"]
[Site "Baden-Baden"]
[Date "2020.02.01"]
[Round "5.10"]
[White "Schmidt, Jessica"]
[Black "Duessler, Stefanie"]
[Result "1-0"]
[ECO "A87"]
[WhiteElo "2243"]
[BlackElo "2109"]
[Annotator "NA"]
[PlyCount "95"]
[EventDate "2019.09.14"]
[EventType "team-tourn"]
[EventCountry "GER"]
[SourceTitle "playchess.com"]
[Source "ChessBase"]
[SourceQuality "1"]
[WhiteTeam "KSF"]
[BlackTeam "LEH"]
[TimeControl "40/5400+30:1800+30"]

1. d4 {[%emt 0:00:30]} f5 {[%emt 0:00:30]} 2. c4 {[%emt 0:00:30]} Nf6 {[%emt 0:00:00]} 3. Nc3 {[%emt 0:00:30]} d6 {[%emt 0:00:00]} 4. Nf3 {[%emt 0:00:30]} g6 {[%emt 0:00:00]} 5. g3 {[%emt 0:00:30]} Bg7 {[%emt 0:00:00]} 6. Bg2 {[%emt 0:00:00]} O-O {[%emt 0:00:30]} 7. O-O {[%emt 0:00:00]} Qe8 {[%emt 0:00:00]} 8. d5 {[%emt 0:00:30]} Na6 {[%emt 0:01:00]} 9. Nd4 {[%emt 0:03:30]} Bd7 {[%emt 0:01:30]} 10. Rb1 {[%emt 0:02:30]} c6 {[%emt 0:08:30]} 11. Re1 {[%emt 0:07:30]} Nc7 {[%emt 0:12:30]} 12. Bf4 {[%emt 0:07:30] [#] A87: Dutch Defence: Leningrad System: 5 Nf3} Nh5 $146 {[%emt 0:09:30]} ({Predecessor:} 12... c5 13. Nc2 Qd8 14. Qd2 b5 15. b4 cxb4 16. Nxb4 bxc4 17. Bh6 a5 18. Nc2 Na6 19. Bxg7 Kxg7 {1-0 (53) Dukic,D (1869)-Melmer,F (1553) Ruhrgebiet 2004}) 13. Qd2 {[%emt 0:04:30]} Nxf4 {[%emt 0:06:30]} 14. gxf4 {[%emt 0:01:30]} c5 {[%emt 0:05:30]} 15. Nf3 {[%emt 0:02:30]} b5 {[%emt 0:01:30]} 16. cxb5 {[%emt 0:04:30]} Nxb5 {[%emt 0:01:30]} 17. Nxb5 {[%emt 0:00:30]} Bxb5 {[%emt 0:00:00]} 18. Ng5 {[%emt 0:01:30]} Bd7 {[%emt 0:01:00]} 19. Rec1 {[%emt 0:02:30]} a5 {[%emt 0:05:30]} 20. b3 {[%emt 0:01:30]} h6 {[%emt 0:05:30]} 21. Ne6 {[%emt 0:00:30]} Bxe6 $1 {[%emt 0:00:30]} 22. dxe6 {[%emt 0:00:30]} Ra7 {[%emt 0:00:30]} 23. Bd5 {[%emt 0:05:30]} Qb5 {[%emt 0:03:30]} 24. a4 {[%emt 0:06:30]} Qb6 {[%emt 0:03:30]} 25. e3 {[%emt 0:04:30]} Rc7 {[%emt 0:00:30]} 26. Kh1 {[%emt 0:00:00]} Rcc8 {[%emt 0:06:30]} 27. Rg1 {[%emt 0:02:00]} Kh7 {[%emt 0:00:30]} 28. Qd3 $16 {[%emt 0:04:30]} Qb4 {[%emt 0:09:03]} 29. Rbc1 {[%emt 0:01:30]} Rb8 {[%emt 0:06:08]} 30. Rg2 {[%emt 0:08:30]} Bf6 {[%emt 0:03:50]} 31. Rcg1 {[%emt 0:06:30]} Rg8 {[%emt 0:02:08]} 32. Rxg6 {[%emt 0:06:51]} Rxg6 {[%emt 0:00:13]} 33. Qxf5 {[%emt 0:00:06]} Rbg8 {[%emt 0:00:14]} 34. Be4 {[%emt 0:00:17]} Qxe4+ {[%emt 0:03:23]} 35. Qxe4 {[%emt 0:00:06]} h5 {[%emt 0:00:05]} 36. Rxg6 {[%emt 0:04:56]} Rxg6 {[%emt 0:00:03]} 37. Qb7 {[%emt 0:00:45]} Rg7 {[%emt 0:00:17]} 38. Qb5 {[%emt 0:02:00]} Bh4 {[%emt 0:00:08]} 39. Qe2 {[%emt 0:00:14]} Kh6 {[%emt 0:00:12]} 40. h3 {[%emt 0:00:11]} Rg8 {[%emt 0:03:46]} 41. f5 {[%emt 0:01:34]} Rb8 {[%emt 0:06:30]} 42. Qc2 {[%emt 0:03:30]} Rb4 {[%emt 0:00:30]} 43. f4 {[%emt 0:01:30]} Bf6 {[%emt 0:00:30]} 44. Qg2 {[%emt 0:00:30]} Kh7 {[%emt 0:00:00]} 45. Qg6+ {[%emt 0:00:30]} Kh8 {[%emt 0:00:00]} 46. Qxh5+ {[%emt 0:00:00]} Kg8 {[%emt 0:00:30]} 47. Qd1 {[%emt 0:01:00]} Kg7 {[%emt 0:00:00]} 48. Kg2 {[%emt 0:00:30]} 1-0

[Event "1.FrauenBL 2019-20"]
[Site "Baden-Baden"]
[Date "2020.02.01"]
[Round "5.11"]
[White "Manusina, Nicole"]
[Black "Kiefhaber, Veronika"]
[Result "0-1"]
[ECO "E81"]
[WhiteElo "1990"]
[BlackElo "2142"]
[Annotator "NA"]
[PlyCount "88"]
[EventDate "2019.09.14"]
[EventType "team-tourn"]
[EventCountry "GER"]
[SourceTitle "playchess.com"]
[Source "ChessBase"]
[SourceQuality "1"]
[WhiteTeam "LEH"]
[BlackTeam "KSF"]
[TimeControl "40/5400+30:1800+30"]

1. d4 {[%emt 0:00:30]} Nf6 {[%emt 0:00:30]} 2. c4 {[%emt 0:00:30]} g6 {[%emt 0:00:00]} 3. Nc3 {[%emt 0:00:30]} Bg7 {[%emt 0:00:00]} 4. e4 {[%emt 0:00:30]} d6 {[%emt 0:00:30]} 5. f3 {[%emt 0:00:30]} O-O {[%emt 0:01:30]} 6. Be3 {[%emt 0:00:30]} a6 {[%emt 0:01:30]} 7. Qd2 {[%emt 0:02:30]} Nbd7 {[%emt 0:02:30]} 8. Nge2 {[%emt 0:15:30]} c5 {[%emt 0:02:30]} 9. Rd1 {[%emt 0:05:30]} Qa5 {[%emt 0:06:30]} 10. Nc1 {[%emt 0:05:30]} cxd4 $11 {[%emt 0:11:30]} 11. Bxd4 {[%emt 0:00:30]} Ne5 {[%emt 0:01:30]} 12. Nd5 {[%emt 0:20:30]} Qxd2+ {[%emt 0:07:30]} 13. Rxd2 {[%emt 0:00:30]} Nxd5 {[%emt 0:02:30]} 14. cxd5 {[%emt 0:01:30]} f5 {[%emt 0:04:30]} 15. Be2 {[%emt 0:17:30]} fxe4 {[%emt 0:05:30]} 16. fxe4 {[%emt 0:00:00]} Bd7 {[%emt 0:00:30]} 17. Rf1 {[%emt 0:08:09]} Rxf1+ {[%emt 0:04:30]} 18. Bxf1 {[%emt 0:03:46]} Rc8 {[%emt 0:02:30]} 19. Nb3 {[%emt 0:03:26]} Ng4 {[%emt 0:08:30]} 20. Bxg7 {[%emt 0:03:40]} Kxg7 {[%emt 0:00:30]} 21. h3 {[%emt 0:01:41]} Ne5 {[%emt 0:00:30]} 22. Nd4 {[%emt 0:02:30]} Rc5 {[%emt 0:11:30]} 23. Rc2 {[%emt 0:02:29]} Rxc2 {[%emt 0:03:30]} 24. Nxc2 {[%emt 0:00:04]} Kf6 {[%emt 0:00:30]} 25. Kd2 {[%emt 0:01:05]} g5 {[%emt 0:06:21]} 26. Be2 {[%emt 0:01:19]} Ng6 {[%emt 0:06:13]} 27. Ke3 {[%emt 0:01:51]} Nf4 {[%emt 0:00:18]} 28. Bf1 {[%emt 0:00:46]} Ke5 {[%emt 0:01:31]} 29. Ne1 {[%emt 0:00:15]} h6 {[%emt 0:01:51]} 30. Nd3+ {[%emt 0:00:46]} Nxd3 {[%emt 0:00:11]} 31. Bxd3 {[%emt 0:00:04]} h5 {[%emt 0:00:44]} 32. Be2 {[%emt 0:00:18]} Be8 {[%emt 0:00:53]} 33. b3 {[%emt 0:01:10]} Bg6 {[%emt 0:00:50]} 34. Bd3 {[%emt 0:00:05]} h4 {[%emt 0:01:33]} 35. a4 {[%emt 0:00:39]} a5 {[%emt 0:00:43]} 36. Bb1 {[%emt 0:00:34]} Bh5 {[%emt 0:00:41]} 37. Bc2 {[%emt 0:00:38]} b6 {[%emt 0:00:33]} 38. Bd3 {[%emt 0:00:32]} Bd1 {[%emt 0:00:09]} 39. Bc4 {[%emt 0:00:13]} Bc2 {[%emt 0:00:12]} 40. Kf2 {[%emt 0:00:54]} Kf4 {[%emt 0:00:00]} 41. Kf1 {[%emt 0:02:06]} Bxe4 {[%emt 0:02:47]} 42. Kf2 {[%emt 0:00:00]} Bc2 {[%emt 0:01:30]} 43. Kf1 {[%emt 0:00:00]} Kg3 {[%emt 0:00:30]} 44. Kg1 {[%emt 0:00:30]} Be4 {[%emt 0:00:00]} 0-1

[Event "1.FrauenBL 2019-20"]
[Site "Baden-Baden"]
[Date "2020.02.01"]
[Round "5.12"]
[White "Moingt, Anne"]
[Black "Boehm, Jana"]
[Result "1-0"]
[ECO "C06"]
[WhiteElo "2068"]
[BlackElo "1996"]
[Annotator "NA"]
[PlyCount "79"]
[EventDate "2019.09.14"]
[EventType "team-tourn"]
[EventCountry "GER"]
[SourceTitle "playchess.com"]
[Source "ChessBase"]
[SourceQuality "1"]
[WhiteTeam "KSF"]
[BlackTeam "LEH"]
[TimeControl "40/5400+30:1800+30"]

1. e4 {[%emt 0:00:30]} e6 {[%emt 0:00:30]} 2. d4 {[%emt 0:00:00]} d5 {[%emt 0:00:00]} 3. Nd2 {[%emt 0:00:00]} Nf6 {[%emt 0:00:00]} 4. e5 {[%emt 0:00:00]} Nfd7 {[%emt 0:00:00]} 5. Bd3 {[%emt 0:00:00]} c5 {[%emt 0:00:00]} 6. c3 {[%emt 0:00:30]} Nc6 {[%emt 0:00:30]} 7. Ne2 {[%emt 0:00:30]} cxd4 {[%emt 0:00:00]} 8. cxd4 {[%emt 0:00:30]} f6 {[%emt 0:00:00]} 9. exf6 {[%emt 0:00:00]} Nxf6 {[%emt 0:00:30]} 10. Nf3 {[%emt 0:01:00]} Bd6 {[%emt 0:00:00]} 11. O-O {[%emt 0:00:30]} Qc7 {[%emt 0:00:00]} 12. Bg5 {[%emt 0:09:30]} O-O {[%emt 0:00:30]} 13. Bh4 {[%emt 0:02:30]} Nh5 {[%emt 0:00:30]} 14. Nc3 {[%emt 0:07:30]} a6 {[%emt 0:15:30]} 15. Re1 {[%emt 0:05:30]} Nf4 {[%emt 0:05:30] [#] C06: French Tarrasch: 3...Nf6 4 e5 Nfd7 5 Bd3 main lines} 16. Bb1 $146 {[%emt 0:04:30]} ({Predecessor:} 16. Bg3 h6 17. Rc1 Bd7 18. Bb1 g5 19. Ne5 Bxe5 20. dxe5 Be8 21. Na4 Bh5 22. Qd2 Qg7 23. Nc5 {1-0 (52) Reshetnikov,A (2355)-Rakhmanov,A (2237) Satka 2005}) 16... Bd7 {[%emt 0:16:30]} 17. Bg3 {[%emt 0:03:30]} Rae8 {[%emt 0:06:30]} 18. Ng5 {[%emt 0:03:30]} g6 {[%emt 0:09:30]} 19. Nxh7 {[%emt 0:15:30]} Kxh7 {[%emt 0:08:30]} 20. Bxf4 {[%emt 0:00:30]} Kg7 $16 {[%emt 0:05:30]} 21. Qd3 {[%emt 0:05:30]} Rf5 {[%emt 0:02:30]} 22. Bxd6 {[%emt 0:03:30]} Qxd6 {[%emt 0:00:30]} 23. Ne2 {[%emt 0:00:30]} Rf6 {[%emt 0:06:30]} 24. a3 {[%emt 0:03:30]} Rh8 {[%emt 0:01:30]} 25. Qg3 {[%emt 0:02:30]} Qf8 {[%emt 0:04:57]} 26. Bd3 {[%emt 0:01:30]} Rh5 {[%emt 0:01:45]} 27. Rac1 {[%emt 0:02:30]} Qf7 {[%emt 0:04:15]} 28. f4 {[%emt 0:06:30]} Kf8 {[%emt 0:04:08]} 29. Qe3 {[%emt 0:00:30]} Qh7 {[%emt 0:01:50]} 30. Qg3 {[%emt 0:01:30]} Qg7 {[%emt 0:00:27]} 31. Bb1 {[%emt 0:04:16]} Be8 {[%emt 0:01:09]} 32. Rcd1 {[%emt 0:00:20]} g5 {[%emt 0:01:11]} 33. Rf1 {[%emt 0:03:00]} g4 {[%emt 0:00:28]} 34. f5 {[%emt 0:02:13]} exf5 {[%emt 0:02:29]} 35. Nf4 {[%emt 0:00:04]} Rg5 {[%emt 0:01:37]} 36. Nxd5 {[%emt 0:00:49]} Rf7 {[%emt 0:00:41]} 37. Nf4 {[%emt 0:02:14]} Nxd4 {[%emt 0:01:15]} 38. Qc3 {[%emt 0:00:30]} Rd7 {[%emt 0:00:09]} 39. Rxd4 {[%emt 0:00:35]} Rxd4 {[%emt 0:00:43]} 40. Ne6+ {[%emt 0:00:06]} 1-0

[Event "1.FrauenBL 2019-20"]
[Site "Baden-Baden"]
[Date "2020.02.02"]
[Round "6.5"]
[White "Tammert, Iamze"]
[Black "Manusina, Nicole"]
[Result "0-1"]
[ECO "A11"]
[WhiteElo "2292"]
[BlackElo "1990"]
[Annotator "ChessBase"]
[PlyCount "76"]
[EventDate "2019.09.14"]
[EventType "team-tourn"]
[EventCountry "GER"]
[SourceTitle "playchess.com"]
[Source "ChessBase"]
[SourceQuality "1"]
[WhiteTeam "BAD"]
[BlackTeam "LEH"]
[TimeControl "40/5400+30:1800+30"]

1. c4 {[%emt 0:00:30]} c6 {[%emt 0:01:30]} 2. Nf3 {[%emt 0:00:30]} d5 {[%emt 0:02:30]} 3. e3 {[%emt 0:00:30]} Nf6 {[%emt 0:03:30]} 4. Nc3 {[%emt 0:00:30]} g6 {[%emt 0:07:30]} 5. Qb3 {[%emt 0:09:30]} a6 {[%emt 0:08:30]} 6. a4 {[%emt 0:09:30]} Bg7 {[%emt 0:03:30]} 7. d4 {[%emt 0:00:30]} O-O {[%emt 0:01:30]} 8. Bd3 {[%emt 0:00:30]} Qd6 {[%emt 0:10:30]} 9. O-O {[%emt 0:00:30]} Nbd7 {[%emt 0:03:30]} 10. Rd1 {[%emt 0:07:30]} Rd8 {[%emt 0:17:30]} 11. e4 {[%emt 0:26:30]} dxe4 {[%emt 0:03:30]} 12. Bxe4 {[%emt 0:00:30]} Nxe4 {[%emt 0:07:30]} 13. Nxe4 {[%emt 0:00:30]} Qc7 {[%emt 0:01:30]} 14. Bg5 {[%emt 0:01:30]} Nf6 {[%emt 0:03:30]} 15. Nxf6+ {[%emt 0:00:30]} exf6 {[%emt 0:00:30]} 16. Bh4 {[%emt 0:07:30]} b6 {[%emt 0:01:56]} 17. Bg3 {[%emt 0:00:30]} Qb7 {[%emt 0:00:34]} 18. d5 {[%emt 0:01:30]} cxd5 {[%emt 0:02:53]} 19. cxd5 {[%emt 0:00:30]} Bf5 {[%emt 0:03:23]} 20. Rac1 {[%emt 0:00:30]} Rd7 {[%emt 0:00:36]} 21. d6 {[%emt 0:00:30]} Be6 {[%emt 0:02:00]} 22. Qc2 {[%emt 0:02:30]} Bd5 {[%emt 0:00:37]} 23. b4 {[%emt 0:05:30]} Bf8 {[%emt 0:01:53]} 24. Qd3 {[%emt 0:01:30]} Be6 {[%emt 0:01:05]} 25. Qc3 {[%emt 0:07:11]} Rad8 {[%emt 0:02:02]} 26. Qxf6 {[%emt 0:00:30]} Bg7 {[%emt 0:01:56]} 27. Qh4 {[%emt 0:00:46]} h6 {[%emt 0:01:29]} 28. b5 {[%emt 0:04:41]} g5 {[%emt 0:01:34]} 29. Qb4 {[%emt 0:00:47]} a5 {[%emt 0:00:23]} 30. Qa3 {[%emt 0:00:27]} f5 {[%emt 0:00:49]} 31. Be5 {[%emt 0:00:42]} g4 {[%emt 0:00:59]} 32. Bxg7 {[%emt 0:00:07]} Rxg7 {[%emt 0:02:49]} 33. Nd4 {[%emt 0:01:02]} Bd7 {[%emt 0:00:05]} 34. Nc6 {[%emt 0:02:11]} Re8 {[%emt 0:00:28]} 35. Ne7+ {[%emt 0:00:11]} Kh7 {[%emt 0:00:25]} 36. Rc7 {[%emt 0:00:24]} Rgxe7 {[%emt 0:00:42]} 37. Qc3 {[%emt 0:00:27]} Qd5 {[%emt 0:00:39]} 38. Rf1 {[%emt 0:02:34]} Qxd6 {[%emt 0:00:21]} 0-1